Cogmind - Beta 15 @@@ ROGUE MODE // 2025.07.01 @ 16:25:50 Player: LightKnight Result: Destroyed by H-77 Assassin with High-powered Shotgun Performance ------------- Evolutions (7) 3500 Regions Visited (28) 5600 Robots Destroyed (248) 1240 Value Destroyed (9175) 9175 Prototype IDs (40) 800 Alien Tech Used (3) 600 Bonus (4471) 4471 TOTAL SCORE: 25386 Bonus ------- High Alert Combat Kills 225 Follower Combat Kills 616 Network Hubs Disabled 200 Met Zhirov 300 Met R17 at Cetus 500 Used Core Reset Matrix 3000 Friendly Fire -370 Cogmind --------- Core Integrity 0/1300 Matter 260/300 Energy 98/100 System Corruption 0% Temperature Cool (0) Movement Core (50) Location -3/Quarantine Parts ------- > --- POWER (3) -------- (None) > --- PROPULSION (6) --- (None) > --- UTILITY (8) ------ (None) > --- WEAPON (4) ------- (None) > --- INVENTORY (5) ---- Light Particle Reactor Advanced Signal Interpreter Experimental Power Shielding Advanced Recalibrator Fusion Bomb Launcher Peak State ------------ > --- POWER ------------ Neutrino-Deuterium Core > --- PROPULSION ------- Treaded Siege-Antigrav Exoskeleton > --- UTILITY ---------- Armored Scrap Engine Enhanced Optical Array Advanced Sensor Array Advanced Signal Interpreter Improved Target Analyzer Advanced System Shield > --- WEAPON ----------- Hyp. Ballistic Coil Construct/G Hpw. Kinetic Gauss Construct/G Kinetic Gauss Construct/C Laser Construct/C > --- INVENTORY -------- Energy Well Matter Compressor Advanced Signal Interpreter Improved Particle Charger [Rating: 107] Favorites ----------- Power Constructs Engine Improved Ion Engine Power Core Constructs Propulsion Light Treads Treads Light Treads Leg Titanium Leg Flight Unit Q-thruster Utility Large Storage Unit Device Armored Scrap Engine Storage Large Storage Unit Processor Enhanced Optical Array Hackware Advanced System Shield Protection Medium Armor Plating Weapon Constructs Energy Gun Spread Laser Energy Cannon Constructs Ballistic Gun Constructs Ballistic Cannon Constructs Launcher Precision Rocket Launcher Impact Weapon Mace Special Melee Weapon Datajack Build | -11 -10 -10 -9 -9 -9 -8 -8 -8 -8 -6 -6 -6 -6 -6 -5 -5 -5 -5 -4 -4 -4 -4 -4 -4 -4 -3 -3 -3 ------- Run | Yrd Mat Min Mat Min Exi Min Mat Sto Rec Fac Ext Cet Arc Hub Fac Upp Upp War Pro Fac Was Fac Upp Upp Zhi Pro Res Qua Slots Evolved 14 | . . . 2 . . . 2 . . 4 . . . . 2 . . . . 2 . . . . . . 2 . Power 2 | . . . . . . . . . . 2 . . . . . . . . . . . . . . . . . . Propulsion 4 | . . . 1 . . . . . . 1 . . . . . . . . . 1 . . . . . . 1 . Utility 6 | . . . . . . . 2 . . . . . . . 2 . . . . 1 . . . . . . 1 . Weapon 2 | . . . 1 . . . . . . 1 . . . . . . . . . . . . . . . . . . Parts Attached 107 | . 12 6 21 1 . 3 13 14 4 3 3 1 . . 3 2 . . 2 5 . 2 . 1 2 1 6 2 Power 8 | . 2 1 2 . . 1 1 1 . . . . . . . . . . . . . . . . . . . . Engine 6 | . 2 . 2 . . . 1 1 . . . . . . . . . . . . . . . . . . . . Core 2 | . . 1 . . . 1 . . . . . . . . . . . . . . . . . . . . . . Reactor . | . . . . . . . . . . . . . . . . . . . . . . . . . . . . . Propulsion 29 | . 2 2 10 . . . 3 5 2 . . . . . . . . . . . . . . . . . 5 . Treads 20 | . 2 . 8 . . . 3 5 2 . . . . . . . . . . . . . . . . . . . Leg 4 | . . 2 2 . . . . . . . . . . . . . . . . . . . . . . . . . Wheel . | . . . . . . . . . . . . . . . . . . . . . . . . . . . . . Hover . | . . . . . . . . . . . . . . . . . . . . . . . . . . . . . Flight 5 | . . . . . . . . . . . . . . . . . . . . . . . . . . . 5 . Utility 44 | . 4 . 2 1 . 1 4 3 2 3 3 1 . . 3 2 . . 1 5 . 2 . 1 2 1 1 2 Device 23 | . 2 . . 1 . . 2 1 2 3 2 . . . 2 1 . . 1 2 . 1 . . . 1 . 2 Storage 5 | . 1 . 1 . . . . . . . 1 . . . 1 . . . . . . . . . 1 . . . Processor 9 | . 1 . . . . . 2 . . . . 1 . . . 1 . . . 2 . 1 . 1 . . . . Hackware 2 | . . . . . . . . . . . . . . . . . . . . 1 . . . . . . 1 . Protection 5 | . . . 1 . . 1 . 2 . . . . . . . . . . . . . . . . 1 . . . Artifact . | . . . . . . . . . . . . . . . . . . . . . . . . . . . . . Weapon 26 | . 4 3 7 . . 1 5 5 . . . . . . . . . . 1 . . . . . . . . . Energy Gun 4 | . 2 1 . . . . . 1 . . . . . . . . . . . . . . . . . . . . Energy Cannon 5 | . 1 . . . . . 2 2 . . . . . . . . . . . . . . . . . . . . Ballistic Gun 10 | . 1 . 6 . . 1 2 . . . . . . . . . . . . . . . . . . . . . Ballistic Cannon 1 | . . . . . . . 1 . . . . . . . . . . . . . . . . . . . . . Launcher 4 | . . . 1 . . . . 2 . . . . . . . . . . 1 . . . . . . . . . Special Weapon . | . . . . . . . . . . . . . . . . . . . . . . . . . . . . . Impact Weapon 1 | . . 1 . . . . . . . . . . . . . . . . . . . . . . . . . . Slashing Weapon . | . . . . . . . . . . . . . . . . . . . . . . . . . . . . . Piercing Weapon . | . . . . . . . . . . . . . . . . . . . . . . . . . . . . . Special Melee Weapon 1 | . . 1 . . . . . . . . . . . . . . . . . . . . . . . . . . Unidentified Prototypes 9 | . . . . 1 . . . 2 1 . . . . . . . . . . . . . . . 3 . . 2 Parts Lost 52 | . 1 1 . . . 2 4 3 . 1 5 1 . . 2 1 . 7 3 4 . 1 . 8 . 1 5 2 Power 9 | . 1 1 . . . . . . . 1 1 . . . 1 . . 2 . 1 . . . 1 . . . . Propulsion 9 | . . . . . . . 3 . . . . . . . . . . . . . . . . 1 . . 4 1 Utility 17 | . . . . . . 1 1 3 . . . 1 . . . 1 . 2 1 2 . . . 2 . 1 1 1 Weapon 17 | . . . . . . 1 . . . . 4 . . . 1 . . 3 2 1 . 1 . 4 . . . . Highest Loss Streak 7 | . 1 1 . . . 1 1 1 . 1 2 1 . . 1 1 . 7 3 3 . 1 . 7 . 1 2 1 To Critical Strikes 1 | . . . . . . . . . . . . . . . . . . . . . . . . 1 . . . . Average Backups 9 | . 9 13 14 14 15 14 14 14 13 9 5 4 4 4 4 4 4 5 3 3 4 4 4 4 3 4 4 4 Power . | . . 1 . . 1 1 1 2 1 . . . . . . . . . . . . . . . . . . 1 Propulsion 1 | . 2 3 3 4 4 4 2 3 2 . . . . . . . . . . . . . . . . . . . Utility 3 | . 1 2 4 5 5 4 3 2 3 6 3 2 2 2 2 3 3 4 3 3 4 4 4 4 3 3 2 2 Weapon 2 | . 4 6 5 4 4 3 5 6 4 1 1 2 2 2 1 1 1 1 . . . . . . . . . . Tool/Special . | . . . . . . . . . . . . . . . . . . . . . . . . . . . . . Unused Backups 40 | . 3 4 8 2 . . 1 3 8 1 2 . . . 3 . . . . . . . . 1 . . 1 3 Power 5 | . . . 1 1 . . . . 2 . . . . . . . . . . . . . . . . . . 1 Propulsion 6 | . . 2 1 . . . . . 2 1 . . . . . . . . . . . . . . . . . . Utility 13 | . 2 . 2 1 . . . 1 1 . 2 . . . 1 . . . . . . . . 1 . . 1 1 Weapon 16 | . 1 2 4 . . . 1 2 3 . . . . . 2 . . . . . . . . . . . . 1 Tool/Special . | . . . . . . . . . . . . . . . . . . . . . . . . . . . . . Average Slot Usage (%) 74 | . 99 99 99 100 100 99 99 96 85 57 49 60 60 60 59 64 64 54 43 46 49 54 63 55 . 3 4 4 Engine 5 | . 14 11 9 11 11 6 8 9 8 5 2 . . . . . . . . 3 . . . . . . . . Core 1 | . . 2 1 . . 4 . . . . 1 4 . . 2 5 5 3 . . 5 5 5 4 . . . . Treads 13 | . 19 1 30 33 33 33 26 27 17 5 3 . . . . . . . 4 4 5 5 5 4 . . . . Leg 2 | . 8 26 2 . . . . . 2 . 2 5 . . . . . . . . . . . . . . . . Device 11 | . 12 14 1 . . . 17 17 16 12 18 13 13 13 18 23 23 19 8 12 7 9 10 8 . 3 . 2 Storage 6 | . 14 14 11 11 11 11 9 9 9 6 . . . . . . . . 4 2 . . . . . . . . Processor 3 | . . . . . . . 4 3 . . . 5 6 6 5 5 5 5 5 7 15 15 15 17 . . . . Protection 3 | . . . 9 10 11 11 4 1 5 . . . . . . . . . . . . . . . . . . . Energy Gun 5 | . 18 14 1 . . . . 1 4 18 7 11 6 6 11 12 11 7 4 1 . . . . . . . . Energy Cannon 6 | . 8 12 . . . . 2 23 19 . . 1 6 6 5 9 11 9 5 3 5 4 5 4 . . . . Ballistic Gun 9 | . 1 . 30 33 33 32 23 . . . 4 . . . . . . . . . 5 6 10 8 . . . . Ballistic Cannon 1 | . . . . . . . . 1 . 4 3 13 13 13 4 . . . 1 3 . 1 5 4 . . . . Peak Build Rating 107 | . 11 18 21 21 17 18 26 29 46 61 74 99 88 88 98 96 96 96 82 92 91 107 107 97 17 9 27 16 Average Rating 48 | . 9 15 18 16 17 17 23 25 32 55 63 83 87 88 91 95 95 83 75 83 89 95 97 84 2 6 9 4 On Entrance 48 | 6 6 10 18 16 17 17 18 25 28 46 56 74 88 88 88 96 95 96 57 78 91 88 107 97 1 3 3 7 Naked Turns 237 | . . . . . . . . . . . . . . . . . . . . . . . . 41 71 54 54 17 Heaviest Build 84 | 11 33 33 45 43 43 43 50 50 47 56 51 83 83 83 84 51 51 51 33 41 21 36 36 33 1 3 . 1 Greatest Support 146 | 20 40 40 60 60 60 60 60 60 60 76 76 137 137 137 137 137 137 137 137 146 146 146 146 146 3 3 24 6 Greatest Overweight (x) 9 | . . 1 . . . . . . 2 1 9 . . . . . . . 8 . . . . . . . . . Average Overweight (x) . | . . . . . . . . . . . . . . . . . . . . . . . . . . . . . Largest Inventory Capacity 20 | . 15 15 20 15 15 15 15 15 15 15 15 5 5 5 5 5 5 5 5 5 5 5 5 5 5 5 5 5 Average Capacity 10 | . 12 15 15 15 15 15 15 15 15 15 5 5 5 5 5 5 5 5 5 5 5 5 5 5 5 5 5 5 Most Carried 15 | . 13 15 15 15 15 15 15 15 15 11 10 5 4 4 5 5 5 5 5 4 4 4 5 5 5 5 5 5 Average Carried 9 | . 9 14 14 14 15 14 14 14 13 9 5 4 4 4 4 4 4 5 3 3 4 4 4 4 3 4 4 4 Final Capacity 15 | 8 15 15 15 15 15 15 15 15 15 15 5 5 5 5 5 5 5 5 5 5 5 5 5 5 5 5 5 5 Final Carried 15 | 6 13 15 15 15 15 14 14 15 9 10 5 4 4 4 5 4 5 5 3 4 4 4 5 3 5 5 4 5 Scrap Engine Consumption 230 | . . . . . . . . . 28 34 73 17 . 1 22 3 7 . 6 22 . 14 2 1 . . . . Constructs Created 20 | . . . . . . . . . 4 2 6 . . . 1 . . . 3 1 . 3 . . . . . . Constructs Modified 68 | . . . . . . . . . 4 12 12 14 . . 6 2 . . 2 12 . 2 2 . . . . . Class Distribution -------------------- 46% | Construct 27% | Scavenger-Tank 12% | Mutant 7% | Scavenger-Gunner Dominant Class ---------------- Mutant | -10/Materials Mutant | -10/Mines Scavenger-Tank | -9/Materials Scavenger-Tank | -9/Mines Scavenger-Tank | -9/Exiles Scavenger-Tank | -8/Mines Scavenger-Gunner | -8/Materials Scavenger-Gunner | -8/Storage Scavenger-Tank | -8/Recycling Construct | -6/Factory Construct | -6/Extension Construct | -6/Cetus Construct | -6/Archives Construct | -6/Hub_04(d) Construct | -5/Factory Construct | -5/Upper Caves Construct | -5/Upper Caves Construct | -5/Warlord Construct | -4/Proximity Caves Construct | -4/Factory Construct | -4/Waste Construct | -4/Factory Construct | -4/Upper Caves Construct | -4/Upper Caves Mutant | -4/Zhirov Mutant | -3/Proximity Caves Mutant | -3/Research Mutant | -3/Quarantine Resources | -11 -10 -10 -9 -9 -9 -8 -8 -8 -8 -6 -6 -6 -6 -6 -5 -5 -5 -5 -4 -4 -4 -4 -4 -4 -4 -3 -3 -3 ----------- Run | Yrd Mat Min Mat Min Exi Min Mat Sto Rec Fac Ext Cet Arc Hub Fac Upp Upp War Pro Fac Was Fac Upp Upp Zhi Pro Res Qua Matter Collected 5924 | 184 161 60 1369 248 . 314 615 371 95 136 290 309 57 . 402 361 49 . 35 125 . 145 68 409 . 77 44 . Remotely . | . . . . . . . . . . . . . . . . . . . . . . . . . . . . . Salvage Created 9725 | . 631 120 1577 311 . 493 710 1290 651 813 595 430 . 11 720 238 75 . 238 608 . 156 . 58 . . . . Parts 530 | . 48 6 110 26 . 31 36 86 34 28 25 21 . . 29 11 2 . 5 23 . 3 . 6 . . . . Haulers Intercepted 9 | . 2 . 4 . . . 1 . . 2 . . . . . . . . . . . . . . . . . . Recyclers Shooed 1 | . . . 1 . . . . . . . . . . . . . . . . . . . . . . . . . Parts Field Recycled . | . . . . . . . . . . . . . . . . . . . . . . . . . . . . . Retrieved Matter . | . . . . . . . . . . . . . . . . . . . . . . . . . . . . . Parts Self-Destructed 26 | . . . . . . . . . . . . . . . . 12 1 . 2 . . . . 6 . 5 . . Prevented 3 | . . . . . . . . . . . . . . . . . . . 3 . . . . . . . . . Kills | -11 -10 -10 -9 -9 -9 -8 -8 -8 -8 -6 -6 -6 -6 -6 -5 -5 -5 -5 -4 -4 -4 -4 -4 -4 -4 -3 -3 -3 ------- Run | Yrd Mat Min Mat Min Exi Min Mat Sto Rec Fac Ext Cet Arc Hub Fac Upp Upp War Pro Fac Was Fac Upp Upp Zhi Pro Res Qua Combat Hostiles Destroyed 203 | . 20 4 32 11 . 14 16 23 11 17 9 5 . . 13 4 . . 3 12 . 6 . 3 . . . . Guns 114 | . 15 2 26 11 . 14 16 3 3 7 3 2 . . 5 2 . . . 3 . 1 . 1 . . . . Cannons 70 | . 5 2 1 . . . . 18 8 2 3 3 . . 8 2 . . 2 9 . 5 . 2 . . . . AOE 16 | . . . 5 . . . . 2 . 7 1 . . . . . . . 1 . . . . . . . . . Classes Destroyed 18 | . 6 . 6 1 . 1 . . 4 . . . . . . . . . . . . . . . . . . . Worker 6 | . 2 . 1 . . 1 . . . 1 . . . 1 . . . . . . . . . . . . . . Builder 3 | . . . 2 . . . . . . 1 . . . . . . . . . . . . . . . . . . Tunneler 4 | . . . 1 1 . 1 . . . 1 . . . . . . . . . . . . . . . . . . Hauler 9 | . 2 . 4 . . . 1 . . 2 . . . . . . . . . . . . . . . . . . Recycler 5 | . . . 3 . . . . 2 . . . . . . . . . . . . . . . . . . . . Mechanic 1 | . . . 1 . . . . . . . . . . . . . . . . . . . . . . . . . Operator 1 | . 1 . . . . . . . . . . . . . . . . . . . . . . . . . . . Watcher 13 | . 3 . 3 . . . 1 2 . 2 . 2 . . . . . . . . . . . . . . . . Swarmer 63 | . 8 . 12 7 . 7 4 4 . 3 1 . . . 4 . . . . 5 . 5 . 3 . . . . Grunt 68 | . 12 4 12 3 . 5 8 4 . 8 6 . . . 2 1 . . 3 . . . . . . . . . Brawler 2 | . . . 1 . . . . . . 1 . . . . . . . . . . . . . . . . . . Duelist 3 | . . . . 1 . 1 1 . . . . . . . . . . . . . . . . . . . . . Protector 1 | . . . . . . . . . 1 . . . . . . . . . . . . . . . . . . . Sentry 37 | . . . 7 . . . 2 13 5 1 1 . . . 5 1 . . . 1 . 1 . . . . . . Hunter 6 | . . . . . . 1 1 2 . . . . . . . . . . . 2 . . . . . . . . Programmer 14 | . . . . . . . . . 2 4 . . . . 2 2 . . . 4 . . . . . . . . Cetus Guard 5 | . . . . . . . . . . . . 5 . . . . . . . . . . . . . . . . Scientist 1 | . . . . . . . . . 1 . . . . . . . . . . . . . . . . . . . Scrapper 3 | . . . . . . . . . 3 . . . . . . . . . . . . . . . . . . . Decomposer 1 | . . . . . . . . . . . . . . . . . 1 . . . . . . . . . . . Thug 2 | . . . . . . . . . . . 2 . . . . . . . . . . . . . . . . . Savage 1 | . . . . . . . . . . . . 1 . . . . . . . . . . . . . . . . Guerrilla 1 | . . . . . . . . . . . 1 . . . . . . . . . . . . . . . . . Best Kill Streak 10 | . 7 2 6 4 . 4 4 4 3 10 3 4 . 1 5 2 . . 3 4 . 5 . 1 . . . . Combat Bots Only 6 | . 6 2 4 3 . 4 4 4 3 6 3 2 . . 5 2 . . 3 4 . 5 . 1 . . . . Max Kills in Single Turn 7 | . 2 1 3 2 . 2 1 3 1 7 3 1 . 1 1 1 1 . 1 1 . 1 . 1 . . . . Gunslinging 1 | . 1 . 1 1 . 1 . . . . . . . . . . . . . . . . . . . . . . Exploded 4 | . . . 3 . . . . 1 . 4 1 . . . . . . . 1 . . . . . . . . . Melee . | . . . . . . . . . . . . . . . . . . . . . . . . . . . . . Uniques/NPCs Destroyed . | . . . . . . . . . . . . . . . . . . . . . . . . . . . . . Combat | -11 -10 -10 -9 -9 -9 -8 -8 -8 -8 -6 -6 -6 -6 -6 -5 -5 -5 -5 -4 -4 -4 -4 -4 -4 -4 -3 -3 -3 -------- Run | Yrd Mat Min Mat Min Exi Min Mat Sto Rec Fac Ext Cet Arc Hub Fac Upp Upp War Pro Fac Was Fac Upp Upp Zhi Pro Res Qua Hostile Shots Fired 1382 | . 51 21 91 30 . 44 64 60 37 108 98 39 3 27 57 9 . 57 38 151 2 30 . 134 . 46 164 21 Missed 473 | . 10 4 25 8 . 11 13 15 10 30 29 13 . 15 19 3 . 29 9 58 1 8 . 36 . 22 94 11 Hits 909 | . 41 17 66 22 . 33 51 45 27 78 69 26 3 12 38 6 . 28 29 93 1 22 . 98 . 24 70 10 Melee 3 | . . . . . . 1 . . . . . . . . . . . . . . 1 . . . . . 1 . Projectile 906 | . 41 17 66 22 . 32 51 45 27 78 69 26 3 12 38 6 . 28 29 93 . 22 . 98 . 24 69 10 Critical Strikes 42 | . . 2 1 1 . 1 3 2 1 5 5 3 . . 3 1 . 4 1 2 1 . . 5 . . 1 . Damage Taken 16831 | . 467 237 750 203 . 461 495 649 522 1417 1239 745 297 191 851 118 . 1419 621 1686 32 367 . 1836 . 558 1450 220 Core 3443 | . 34 24 61 43 . 64 27 140 46 118 171 52 120 . 24 . . 113 91 250 32 . . 278 . 461 1127 167 Absorbed by Shields 259 | . . . . . . . 193 42 . 24 . . . . . . . . . . . . . . . . . . Redirected to Shielding 89 | . . . . . . . . 11 78 . . . . . . . . . . . . . . . . . . . Regen/Repaired (Parts) 5295 | . 53 . 108 . . . 105 . 78 353 1046 715 . . 534 112 . . 902 1112 . 50 27 100 . . . . Core Remaining (%) 61 | 100 . 76 . . . 58 . . 61 . . . . 45 . . . . 77 . . . . . . 11 . . Volleys Fired 610 | . 55 13 90 20 . 29 58 47 24 38 49 26 4 1 26 18 2 . 17 58 1 15 . 19 . . . . Largest 4 | . 2 2 3 3 . 3 3 3 3 4 4 4 4 1 4 4 4 . 3 2 1 4 . 4 . . . . Hottest 250 | . 130 125 145 69 . 69 110 196 196 250 223 223 223 54 223 203 196 . 200 118 36 190 . 180 . . . . Shots Fired 1577 | . 103 26 266 60 . 87 169 132 69 108 88 85 12 1 95 48 5 . 23 84 1 51 . 64 . . . . Gun 1030 | . 81 13 258 60 . 87 161 19 8 73 71 38 4 . 44 31 3 . 2 17 1 27 . 32 . . . . Cannon 534 | . 22 13 6 . . . 8 113 61 28 15 47 8 1 51 17 2 . 19 67 . 24 . 32 . . . . Launcher 13 | . . . 2 . . . . . . 7 2 . . . . . . . 2 . . . . . . . . . Special . | . . . . . . . . . . . . . . . . . . . . . . . . . . . . . Kinetic 840 | . 5 . 251 60 . 87 161 6 . 33 44 21 3 . 17 . . . . 58 1 46 . 47 . . . . Thermal 596 | . 98 26 13 . . . 8 83 69 55 9 43 9 1 78 48 5 . 21 13 . . . 17 . . . . Explosive 11 | . . . 2 . . . . . . 7 2 . . . . . . . . . . . . . . . . . Electromagnetic 130 | . . . . . . . . 43 . 13 33 21 . . . . . . 2 13 . 5 . . . . . . Robot Hit Streak 21 | . 16 15 21 7 . 10 11 21 12 7 14 6 2 . 11 14 3 . 5 9 8 9 . 4 . . . . Robot Miss Streak 11 | . 11 2 5 3 . 7 5 7 3 5 6 3 2 . 4 3 . . 2 5 . 3 . 5 . . . . Penetration Max 1 | . . . . . . . . . . . 1 1 . . . . . . . . . . . . . . . . Secondary Targets 10 | . 3 . 2 2 . 2 1 . . . . . . . . . . . . . . . . . . . . . Max Gunslinging Chain 1 | . 1 . 1 1 . 1 1 . . . . . . . . . . . . . . . . . . . . . Shots Hit Robots 924 | . 80 23 156 35 . 53 99 75 47 59 49 45 6 . 53 24 1 . 16 47 1 21 . 34 . . . . Core Hits 473 | . 85 17 69 17 . 27 37 34 17 40 22 23 2 2 25 7 1 . 9 23 . 8 . 8 . . . . Critical Kills 6 | . . . . . . . . . . 1 . 2 . . 2 . . . . . . 1 . . . . . . Critical Parts Destroyed 7 | . . . 4 . . . 1 . . . . 1 1 . . . . . . . . . . . . . . . Critical Strikes 26 | . . . 4 . . . 1 . . 1 . 9 1 . 2 . . . . 3 . 3 . 2 . . . . Burn 7 | . . . . . . . . . . . . 6 . . . . . . . 1 . . . . . . . . Meltdown 1 | . . . . . . . . . . 1 . . . . . . . . . . . . . . . . . . Destroy 12 | . . . 4 . . . 1 . . . . 3 1 . 2 . . . . . . 1 . . . . . . Blast 4 | . . . . . . . . . . . . . . . . . . . . . . 2 . 2 . . . . Corrupt 2 | . . . . . . . . . . . . . . . . . . . . 2 . . . . . . . . Melee Attacks 3 | . . 1 . . . . . . 2 . . . . . . . . . . . . . . . . . . . Impact 1 | . . 1 . . . . . . . . . . . . . . . . . . . . . . . . . . Slashing . | . . . . . . . . . . . . . . . . . . . . . . . . . . . . . Piercing . | . . . . . . . . . . . . . . . . . . . . . . . . . . . . . Sneak Attacks 2 | . . . . . . . . . 2 . . . . . . . . . . . . . . . . . . . Combat Hostiles . | . . . . . . . . . . . . . . . . . . . . . . . . . . . . . Follow-up Attacks . | . . . . . . . . . . . . . . . . . . . . . . . . . . . . . Damage Inflicted 22292 | . 1219 417 2834 593 . 806 1675 1866 976 3274 1393 1200 180 128 1558 678 95 . 586 1265 29 657 . 863 . . . . Guns 11176 | . 793 177 2381 569 . 787 1620 301 89 891 886 505 48 . 631 323 60 . 25 315 29 274 . 472 . . . . Cannons 7670 | . 293 217 69 . . . 26 1433 866 358 177 695 132 . 927 355 35 . 364 949 . 383 . 391 . . . . Explosions 3220 | . 130 . 308 . . . . 118 . 2009 330 . . 128 . . . . 197 . . . . . . . . . Melee . | . . . . . . . . . . . . . . . . . . . . . . . . . . . . . Ramming 226 | . 3 23 76 24 . 19 29 14 21 16 . . . . . . . . . 1 . . . . . . . . Kinetic 9001 | . 35 . 2303 569 . 787 1620 99 . 421 492 339 57 . 182 . . . . 819 29 610 . 639 . . . . Thermal 9190 | . 1051 394 147 . . . 26 880 955 1995 79 573 123 . 1376 678 95 . 389 205 . . . 224 . . . . Explosive 1485 | . 130 . 283 . . . . . . 742 330 . . . . . . . . . . . . . . . . . Electromagnetic 2390 | . . . 25 . . . . 873 . 100 492 288 . 128 . . . . 197 240 . 47 . . . . . . Impact . | . . . . . . . . . . . . . . . . . . . . . . . . . . . . . Slashing . | . . . . . . . . . . . . . . . . . . . . . . . . . . . . . Piercing . | . . . . . . . . . . . . . . . . . . . . . . . . . . . . . Highest Corruption 21 | . . . . . . . . . 2 7 7 7 7 9 1 2 2 2 . 7 21 21 21 21 21 21 1 1 Average Corruption 8 | . . . . . . . . . 1 4 7 7 7 7 1 1 2 2 . 5 13 21 21 21 21 21 1 1 Corruption Purged . | . . . . . . . . . . . . . . . . . . . . . . . . . . . . . Corruption Blocked . | . . . . . . . . . . . . . . . . . . . . . . . . . . . . . Effects 249 | . . . . . . . . . 9 23 46 14 4 2 3 12 10 . . 16 5 24 38 28 5 10 . . Message Errors 48 | . . . . . . . . . 1 4 11 2 1 . . 1 2 . . 3 3 3 9 6 . 2 . . Matter Fused 72 | . . . . . . . . . 3 5 14 5 1 1 . 7 1 . . 5 . 8 10 5 3 4 . . Heat Flow Errors 31 | . . . . . . . . . 1 1 8 2 . 1 1 1 1 . . 2 1 2 7 2 1 . . . Energy Discharges 23 | . . . . . . . . . . 3 3 3 . . . . 2 . . 1 . 6 2 3 . . . . Parts Rejected 4 | . . . . . . . . . . 1 1 . 1 . . . . . . . . 1 . . . . . . Parts Fused 4 | . . . . . . . . . 1 . . . . . 1 . 1 . . . . . 1 . . . . . Data Loss (minor) 31 | . . . . . . . . . 3 5 1 1 1 . . 2 3 . . 2 . 2 6 4 . 1 . . Data Loss (major) 11 | . . . . . . . . . . 2 1 . . . 1 1 . . . 2 . 1 1 2 . . . . Misfires 3 | . . . . . . . . . . 1 2 . . . . . . . . . . . . . . . . . Alerts 9 | . . . . . . . . . . 1 4 . . . . . . . . . 1 . 2 . 1 . . . Misdirections 6 | . . . . . . . . . . . . . . . . . . . . . . . . 3 . 3 . . Weapon Failures 7 | . . . . . . . . . . . 1 1 . . . . . . . 1 . 1 . 3 . . . . Overload Shots 1 | . . . . . . . . . . . . . . . . . 1 . . . . . . . . . . . Overflow Damage 352 | . 20 . 3 . . . . 58 13 131 53 . . 18 35 . 21 . . . . . . . . . . . Projectiles 142 | . . . . . . . . 58 13 4 11 . . . 35 . 21 . . . . . . . . . . . Explosions 210 | . 20 . 3 . . . . . . 127 42 . . 18 . . . . . . . . . . . . . . Melee . | . . . . . . . . . . . . . . . . . . . . . . . . . . . . . Knockbacks 15 | . . . 1 . . . 1 . . 2 1 . . . . . . . . 7 . 3 . . . . . . Impact 2 | . . . 1 . . . 1 . . . . . . . . . . . . . . . . . . . . . Kinetic 11 | . . . . . . . . . . 1 1 . . . . . . . . 6 . 3 . . . . . . Secondary 2 | . . . . . . . . . . 1 . . . . . . . . . 1 . . . . . . . . Self-Inflicted Damage 525 | . 55 . . . . . . 40 . 89 202 . . 105 . . . . 34 . . . . . . . . . Shots 11 | . 1 . . . . . . 1 . 3 3 . . 1 . . . . 2 . . . . . . . . . Rammed 20 | . 1 . 7 6 . 1 3 1 . . . . . . . . . . . 1 . . . . . . . . Targets Rammed 32 | . 1 3 10 6 . 2 3 2 3 1 . . . . . . . . . 1 . . . . . . . . Kicked 6 | . . 3 . . . . . . 3 . . . . . . . . . . . . . . . . . . . Crushed 6 | . . . 3 . . 1 . 1 . 1 . . . . . . . . . . . . . . . . . . Highest Temperature 372 | . 36 63 150 107 . 189 16 134 200 321 329 372 272 232 216 134 79 . 133 251 159 341 230 305 231 . . . Average Temperature 66 | . 11 30 36 29 . 66 5 33 56 77 108 179 118 99 71 69 41 . 61 57 93 109 93 121 123 . . . Received Heat Transfer 2879 | . 147 193 246 51 . 180 195 177 189 174 690 . 27 24 162 27 . . 229 36 . 27 . 9 . 18 51 27 Effects 4 | . . . . . . . . . . 1 . 1 . 2 . . . . . . . . . . . . . . Energy Bleed 1 | . . . . . . . . . . . . 1 . . . . . . . . . . . . . . . . Interference 2 | . . . . . . . . . . . . . . 2 . . . . . . . . . . . . . . Short Circuit 1 | . . . . . . . . . . 1 . . . . . . . . . . . . . . . . . . Siege Activations . | . . . . . . . . . . . . . . . . . . . . . . . . . . . . . Martial Activations . | . . . . . . . . . . . . . . . . . . . . . . . . . . . . . Shielding Activations . | . . . . . . . . . . . . . . . . . . . . . . . . . . . . . Robots Disrupted . | . . . . . . . . . . . . . . . . . . . . . . . . . . . . . Combat Hostiles . | . . . . . . . . . . . . . . . . . . . . . . . . . . . . . Robots Corrupted 2 | . . . . . . . . . . . 2 . . . . . . . . . . . . . . . . . Combat Hostiles 2 | . . . . . . . . . . . 2 . . . . . . . . . . . . . . . . . Parts Fried 8 | . . . . . . . . 2 . . 3 . . 1 . . . . . 2 . . . . . . . . Impact Corruptions . | . . . . . . . . . . . . . . . . . . . . . . . . . . . . . Robots Melted 2 | . . . . . . . . . . 2 . . . . . . . . . . . . . . . . . . Combat Hostiles 1 | . . . . . . . . . . 1 . . . . . . . . . . . . . . . . . . Parts Melted 29 | . 1 1 . . . . . 2 4 7 . . . . 9 . . . 3 2 . . . . . . . . Heat Transferred 12780 | . 1571 669 253 . . . 37 1495 1307 2171 74 1110 185 . 1776 888 87 . 787 370 . . . . . . . . Parts Sabotaged . | . . . . . . . . . . . . . . . . . . . . . . . . . . . . . Parts Stolen . | . . . . . . . . . . . . . . . . . . . . . . . . . . . . . Parts Stripped . | . . . . . . . . . . . . . . . . . . . . . . . . . . . . . Power Chain Reactions 2 | . . . . . . . . 2 . . . . . . . . . . . . . . . . . . . . Alert | -11 -10 -10 -9 -9 -9 -8 -8 -8 -8 -6 -6 -6 -6 -6 -5 -5 -5 -5 -4 -4 -4 -4 -4 -4 -4 -3 -3 -3 ------- Run | Yrd Mat Min Mat Min Exi Min Mat Sto Rec Fac Ext Cet Arc Hub Fac Upp Upp War Pro Fac Was Fac Upp Upp Zhi Pro Res Qua Maximum Alert Level 3 | . 1 . 2 1 . . . 2 1 3 2 1 . . . . . . . . . 1 . . . . 1 . Low Security (%) 62 | . 43 100 47 10 . 100 100 36 97 7 . 73 100 100 100 . . . . 100 100 91 . . . . 94 100 Level 1 28 | . 56 . 23 89 . . . 54 2 29 97 26 . . . . . . . . . 8 . . . . 5 . Level 2 8 | . . . 29 . . . . 9 . 55 2 . . . . . . . . . . . . . . . . . Level 3 . | . . . . . . . . . . 6 . . . . . . . . . . . . . . . . . . Level 4 . | . . . . . . . . . . . . . . . . . . . . . . . . . . . . . Level 5 . | . . . . . . . . . . . . . . . . . . . . . . . . . . . . . High Security . | . . . . . . . . . . . . . . . . . . . . . . . . . . . . . Max Security . | . . . . . . . . . . . . . . . . . . . . . . . . . . . . . Peak Influence 749 | . 323 119 658 362 . 82 149 417 218 749 411 276 33 193 199 . . . . 141 10 230 . . . . 210 101 Initial 361 | . . 119 . 243 . . . 42 162 361 361 209 18 . 94 . . . . . 10 . . . . . 23 101 Average 176 | . 182 29 259 282 . 30 36 231 113 488 316 158 11 28 132 . . . . 38 1 26 . . . . 91 76 Influence Increases 8479 | . 704 116 1114 359 . 362 445 834 449 1281 674 220 45 193 380 80 5 . 85 390 . 328 . 70 . 45 300 . Destroy 0b10 Robot/C 4280 | . 400 80 640 280 . 280 320 460 160 340 340 160 . . 260 80 . . 60 240 . 120 . 60 . . . . Destroy 0b10 Robot/NC 230 | . 40 . 75 5 . 10 10 20 10 35 5 10 . 5 . . 5 . . . . . . . . . . . Destroy Leader 902 | . 90 20 174 50 . 50 64 174 . 88 32 . . . 70 . . . 10 50 . 20 . 10 . . . . Allied During Kill 158 | . . . . 9 . . . . 1 3 100 45 . . . . . . . . . . . . . . . . Trap Triggered on 0b10 10 | . . . . . . . . 10 . . . . . . . . . . . . . . . . . . . . Successful Hack 276 | . 37 . 23 . . 7 28 40 51 . 26 . . . 5 . . . . 36 . 23 . . . . . . Select Force Hacks 360 | . 60 . 60 . . . . 30 210 . . . . . . . . . . . . . . . . . . . Disable Machine 825 | . 30 15 60 15 . . 15 75 15 330 90 . 15 75 15 . . . . 15 . 60 . . . . . . Destroy Structure 413 | . 32 1 22 . . . 8 25 2 90 51 5 . 113 30 . . . . 4 . 30 . . . . . . Advance Influence 350 | . . . . . . . . . . 350 . . . . . . . . . . . . . . . . . . Partial Spotted 15 | . . . . . . . . . . 15 . . . . . . . . . . . . . . . . . . Lose Combat Pursuer 660 | . 15 . 60 . . 15 . . . 30 30 . 30 . . . . . 15 45 . 75 . . . 45 300 . Influence Decreases 8428 | . 397 423 490 817 166 362 344 518 838 571 1037 550 90 . 437 216 5 . 85 361 29 98 230 70 . 10 155 129 Entered New Map 1982 | . . 188 . 381 166 . . 59 255 17 377 166 27 . 99 51 . . . . 19 . 86 . . . 12 79 Time Decay 5918 | . 387 225 490 416 . 352 324 429 583 514 530 254 63 . 318 165 5 . 65 350 10 94 144 60 . 10 100 30 Lost Part 278 | . 10 10 . . . 10 20 30 . 10 50 10 . . 20 . . . 20 11 . 4 . 10 . . 43 20 Lost Ally 250 | . . . . 20 . . . . . 30 80 120 . . . . . . . . . . . . . . . . Squads Dispatched 32 | . 5 . 5 . . . 1 4 . 7 1 . . . 2 . . . . 3 . 2 . . . . . 2 Investigation 9 | . 3 . 2 . . . . 2 . . 1 . . . . . . . . . . 1 . . . . . . Extermination 9 | . . . . . . . . . . 4 . . . . 1 . . . . 3 . 1 . . . . . . Reinforcement 11 | . 2 . 2 . . . 1 1 . 2 . . . . 1 . . . . . . . . . . . . 2 Assault 2 | . . . 1 . . . . . . 1 . . . . . . . . . . . . . . . . . . Garrison 1 | . . . . . . . . 1 . . . . . . . . . . . . . . . . . . . . Intercept . | . . . . . . . . . . . . . . . . . . . . . . . . . . . . . Searches Triggered . | . . . . . . . . . . . . . . . . . . . . . . . . . . . . . Construction Impeded . | . . . . . . . . . . . . . . . . . . . . . . . . . . . . . Haulers Reinforced 2 | . . . . . . . . . . 1 . . . . 1 . . . . . . . . . . . . . Active Scanning Responses . | . . . . . . . . . . . . . . . . . . . . . . . . . . . . . Cargo Convoy Interrupts . | . . . . . . . . . . . . . . . . . . . . . . . . . . . . . Stealth | -11 -10 -10 -9 -9 -9 -8 -8 -8 -8 -6 -6 -6 -6 -6 -5 -5 -5 -5 -4 -4 -4 -4 -4 -4 -4 -3 -3 -3 --------- Run | Yrd Mat Min Mat Min Exi Min Mat Sto Rec Fac Ext Cet Arc Hub Fac Upp Upp War Pro Fac Was Fac Upp Upp Zhi Pro Res Qua Distress Signals 19 | . 2 1 2 1 . . 1 2 1 1 2 2 . . . . . . . 2 . 1 . . . . 1 . Communications Jammed . | . . . . . . . . . . . . . . . . . . . . . . . . . . . . . Distress Signals . | . . . . . . . . . . . . . . . . . . . . . . . . . . . . . Times Spotted 390 | . 34 17 50 14 . 15 23 31 12 20 21 10 10 1 16 4 . 6 4 18 6 15 . 6 . 8 38 11 Peak Tracking Total 20 | . 5 20 5 4 . 3 4 5 4 6 5 5 10 1 5 2 . 6 3 5 6 5 . 3 . 5 16 7 Tactical Retreats 26 | . 1 1 4 . . 1 . . . 2 2 . 1 . . . . . 1 1 1 2 . . . 2 7 . Traps | -11 -10 -10 -9 -9 -9 -8 -8 -8 -8 -6 -6 -6 -6 -6 -5 -5 -5 -5 -4 -4 -4 -4 -4 -4 -4 -3 -3 -3 ------- Run | Yrd Mat Min Mat Min Exi Min Mat Sto Rec Fac Ext Cet Arc Hub Fac Upp Upp War Pro Fac Was Fac Upp Upp Zhi Pro Res Qua Traps Triggered 15 | . 1 1 3 . . . . . . 2 2 . . . . . . 1 . 4 . 1 . . . . . . Indirectly . | . . . . . . . . . . . . . . . . . . . . . . . . . . . . . Trap Hack Attempts 71 | . . 15 . . . . . 56 . . . . . . . . . . . . . . . . . . . . Triggered . | . . . . . . . . . . . . . . . . . . . . . . . . . . . . . Disarmed 2 | . . . . . . . . 2 . . . . . . . . . . . . . . . . . . . . Reprogrammed 8 | . . 2 . . . . . 6 . . . . . . . . . . . . . . . . . . . . Reused 1 | . . . . . . . . 1 . . . . . . . . . . . . . . . . . . . . Traps Extracted . | . . . . . . . . . . . . . . . . . . . . . . . . . . . . . Installed . | . . . . . . . . . . . . . . . . . . . . . . . . . . . . . Triggered 1 | . . . . . . . . 1 . . . . . . . . . . . . . . . . . . . . Most Traps Carried 1 | . . 1 1 . . . . . . . . . . . . . . . . . . . . . . . . . Machines | -11 -10 -10 -9 -9 -9 -8 -8 -8 -8 -6 -6 -6 -6 -6 -5 -5 -5 -5 -4 -4 -4 -4 -4 -4 -4 -3 -3 -3 ---------- Run | Yrd Mat Min Mat Min Exi Min Mat Sto Rec Fac Ext Cet Arc Hub Fac Upp Upp War Pro Fac Was Fac Upp Upp Zhi Pro Res Qua Machines Disabled 56 | . 2 1 4 1 . . 1 5 1 22 7 . 1 5 1 . . . . 1 . 4 . . . . . . Max in Single Turn 17 | . 1 1 1 1 . . 1 1 1 17 2 . 1 5 1 . . . . 1 . 1 . . . . . . Garrison Access 2 | . . . . . . . . 1 . . . . . . . . . . . . . . . . . . 1 . Network Hub 1 | . . . . . . . . . . . . . . 1 . . . . . . . . . . . . . . Energy Cycler 1 | . . . . . . . . . . . 1 . . . . . . . . . . . . . . . . . Machines Repaired . | . . . . . . . . . . . . . . . . . . . . . . . . . . . . . Machines Dismantled . | . . . . . . . . . . . . . . . . . . . . . . . . . . . . . Machines Sabotaged . | . . . . . . . . . . . . . . . . . . . . . . . . . . . . . Overloaded Fab Kills . | . . . . . . . . . . . . . . . . . . . . . . . . . . . . . Hacking | -11 -10 -10 -9 -9 -9 -8 -8 -8 -8 -6 -6 -6 -6 -6 -5 -5 -5 -5 -4 -4 -4 -4 -4 -4 -4 -3 -3 -3 --------- Run | Yrd Mat Min Mat Min Exi Min Mat Sto Rec Fac Ext Cet Arc Hub Fac Upp Upp War Pro Fac Was Fac Upp Upp Zhi Pro Res Qua Machines Accessed 80 | . 9 1 8 2 4 1 6 11 14 1 5 . . . 1 . 1 . . 4 . 3 1 . 4 . 3 1 Terminals 46 | . 6 . 4 1 . 1 5 9 6 1 5 . . . 1 . . . . 3 . 3 . . . . . 1 Fabricators 1 | . . . . . . . . . . . . . . . . . . . . . . . . . . . 1 . Repair Stations 4 | . 1 . 2 . . . 1 . . . . . . . . . . . . . . . . . . . . . Recycling Units 12 | . 2 . 2 . . . . 1 7 . . . . . . . . . . . . . . . . . . . Scanalyzers . | . . . . . . . . . . . . . . . . . . . . . . . . . . . . . Garrison Access 4 | . . . . . . . . 1 . . . . . . . . . . . 1 . . . . . . 2 . Total Hacks 191 | . 27 1 17 2 4 1 17 29 27 4 14 . . . 3 . 1 . . 15 . 5 1 . 17 . 5 1 Successful 114 | . 19 1 10 1 4 1 8 16 20 1 4 . . . 2 . 1 . . 4 . 2 1 . 17 . 2 . Failed 75 | . 7 . 7 1 . . 9 13 6 3 10 . . . 1 . . . . 11 . 3 . . . . 3 1 Catastrophic 18 | . . . 2 1 . . 3 3 1 1 2 . . . . . . . . 2 . 1 . . . . 1 1 Database Lockouts 2 | . 1 . . . . . . . 1 . . . . . . . . . . . . . . . . . . . Manual 90 | . 18 . 9 . 1 2 11 14 16 . 5 . . . 3 . . . . 6 . 4 . . . . . 1 Terminals 129 | . 23 . 10 1 . 1 15 27 17 4 14 . . . 3 . . . . 8 . 5 . . . . . 1 Fabricators 1 | . . . . . . . . . . . . . . . . . . . . . . . . . . . 1 . Repair Stations 8 | . 2 . 4 . . . 2 . . . . . . . . . . . . . . . . . . . . . Recycling Units 14 | . 2 . 3 . . . . 1 8 . . . . . . . . . . . . . . . . . . . Scanalyzers . | . . . . . . . . . . . . . . . . . . . . . . . . . . . . . Garrison Access 12 | . . . . . . . . 1 . . . . . . . . . . . 7 . . . . . . 4 . Terminal Hacks 75 | . 12 1 3 1 4 1 3 11 11 1 3 . . . 1 . 1 . . 3 . 1 1 . 17 . . . Record 9 | . . . . . 4 . . . . . . . . . . . . . . . . . . . 5 . . . Part Schematic 11 | . . . . . . . . . 7 . . . . . . . . . . . . . . . 4 . . . Robot Analysis 9 | . 2 . 1 . . 1 . . . . . . . . . . . . . 1 . . . . 4 . . . Prototype ID Bank 14 | . 4 . . . . . 1 2 2 . 1 . . . . . . . . . . . . . 4 . . . Open Door 9 | . . 1 . 1 . . . 4 . . 1 . . . . . 1 . . . . . 1 . . . . . Branch Access Points 4 | . . . . . . . . . . 1 . . . . 1 . . . . 1 . 1 . . . . . . Locate Traps 10 | . 3 . 1 . . . 1 3 . . 1 . . . . . . . . 1 . . . . . . . . Recall Investigation 1 | . 1 . . . . . . . . . . . . . . . . . . . . . . . . . . . Hauler Manifests 5 | . 2 . 1 . . . 1 1 . . . . . . . . . . . . . . . . . . . . Zone Layout 1 | . . . . . . . . 1 . . . . . . . . . . . . . . . . . . . . Release Object 2 | . . . . . . . . . 2 . . . . . . . . . . . . . . . . . . . Fabricator Hacks 1 | . . . . . . . . . . . . . . . . . . . . . . . . . . . 1 . Network Status 1 | . . . . . . . . . . . . . . . . . . . . . . . . . . . 1 . Repair Station Hacks 7 | . 2 . 3 . . . 2 . . . . . . . . . . . . . . . . . . . . . Scan Component 4 | . 1 . 2 . . . 1 . . . . . . . . . . . . . . . . . . . . . Repair 3 | . 1 . 1 . . . 1 . . . . . . . . . . . . . . . . . . . . . Recycling Unit Hacks . | . . . . . . . . . . . . . . . . . . . . . . . . . . . . . Scanalyzer . | . . . . . . . . . . . . . . . . . . . . . . . . . . . . . Garrison Access Hacks 2 | . . . . . . . . 1 . . . . . . . . . . . . . . . . . . 1 . Seal Access 2 | . . . . . . . . 1 . . . . . . . . . . . . . . . . . . 1 . Unauthorized Hacks 29 | . 5 . 4 . . . 3 4 9 . 1 . . . 1 . . . . 1 . 1 . . . . . . Terminals 17 | . 3 . 2 . . . 3 3 2 . 1 . . . 1 . . . . 1 . 1 . . . . . . Botnet 17 | . 3 . 2 . . . 3 3 2 . 1 . . . 1 . . . . 1 . 1 . . . . . . Fabricators . | . . . . . . . . . . . . . . . . . . . . . . . . . . . . . Repair Stations . | . . . . . . . . . . . . . . . . . . . . . . . . . . . . . Recycling Units 12 | . 2 . 2 . . . . 1 7 . . . . . . . . . . . . . . . . . . . Tunnel 12 | . 2 . 2 . . . . 1 7 . . . . . . . . . . . . . . . . . . . Scanalyzers . | . . . . . . . . . . . . . . . . . . . . . . . . . . . . . Garrison Access . | . . . . . . . . . . . . . . . . . . . . . . . . . . . . . Data Cores Recovered . | . . . . . . . . . . . . . . . . . . . . . . . . . . . . . Used . | . . . . . . . . . . . . . . . . . . . . . . . . . . . . . Hacking Detections 44 | . 6 . 6 1 . 1 6 6 4 1 4 . . . 1 . . . . 4 . 1 . . . . 2 1 Full Trace Events 1 | . . . . . . . . 1 . . . . . . . . . . . . . . . . . . . . Feedback Events . | . . . . . . . . . . . . . . . . . . . . . . . . . . . . . Feedback Blocked . | . . . . . . . . . . . . . . . . . . . . . . . . . . . . . Robot Schematics Acquired . | . . . . . . . . . . . . . . . . . . . . . . . . . . . . . Robots Built . | . . . . . . . . . . . . . . . . . . . . . . . . . . . . . Authchips . | . . . . . . . . . . . . . . . . . . . . . . . . . . . . . Time . | . . . . . . . . . . . . . . . . . . . . . . . . . . . . . Total Robot Build Rating . | . . . . . . . . . . . . . . . . . . . . . . . . . . . . . Part Schematics Acquired 11 | . . . . . . . . . 7 . . . . . . . . . . . . . . . 4 . . . Parts Built . | . . . . . . . . . . . . . . . . . . . . . . . . . . . . . Authchips . | . . . . . . . . . . . . . . . . . . . . . . . . . . . . . Time . | . . . . . . . . . . . . . . . . . . . . . . . . . . . . . Total Part Build Rating . | . . . . . . . . . . . . . . . . . . . . . . . . . . . . . Parts Repaired 3 | . 1 . 1 . . . 1 . . . . . . . . . . . . . . . . . . . . . Time 74 | . 26 . 32 . . . 16 . . . . . . . . . . . . . . . . . . . . . Parts Recycled . | . . . . . . . . . . . . . . . . . . . . . . . . . . . . . Recycled Matter . | . . . . . . . . . . . . . . . . . . . . . . . . . . . . . Retrieved Matter . | . . . . . . . . . . . . . . . . . . . . . . . . . . . . . Retrieved Components . | . . . . . . . . . . . . . . . . . . . . . . . . . . . . . Parts Scanalyzed . | . . . . . . . . . . . . . . . . . . . . . . . . . . . . . Part Schematics Acquired . | . . . . . . . . . . . . . . . . . . . . . . . . . . . . . Parts Damaged . | . . . . . . . . . . . . . . . . . . . . . . . . . . . . . Bothacking | -11 -10 -10 -9 -9 -9 -8 -8 -8 -8 -6 -6 -6 -6 -6 -5 -5 -5 -5 -4 -4 -4 -4 -4 -4 -4 -3 -3 -3 ------------ Run | Yrd Mat Min Mat Min Exi Min Mat Sto Rec Fac Ext Cet Arc Hub Fac Upp Upp War Pro Fac Was Fac Upp Upp Zhi Pro Res Qua Used RIF Installer . | . . . . . . . . . . . . . . . . . . . . . . . . . . . . . Robots Hacked . | . . . . . . . . . . . . . . . . . . . . . . . . . . . . . Non-combat . | . . . . . . . . . . . . . . . . . . . . . . . . . . . . . Combat . | . . . . . . . . . . . . . . . . . . . . . . . . . . . . . Robot Hacks Applied . | . . . . . . . . . . . . . . . . . . . . . . . . . . . . . Relay Couplers Released . | . . . . . . . . . . . . . . . . . . . . . . . . . . . . . Fabnet Peak Effective % . | . . . . . . . . . . . . . . . . . . . . . . . . . . . . . Robots Rewired 13 | . . . . . . . . . 2 . 11 . . . . . . . . . . . . . . . . . Allies Hacked . | . . . . . . . . . . . . . . . . . . . . . . . . . . . . . Hacks Repelled . | . . . . . . . . . . . . . . . . . . . . . . . . . . . . . Allies | -11 -10 -10 -9 -9 -9 -8 -8 -8 -8 -6 -6 -6 -6 -6 -5 -5 -5 -5 -4 -4 -4 -4 -4 -4 -4 -3 -3 -3 -------- Run | Yrd Mat Min Mat Min Exi Min Mat Sto Rec Fac Ext Cet Arc Hub Fac Upp Upp War Pro Fac Was Fac Upp Upp Zhi Pro Res Qua Total Allies 17 | . . . . 1 . . . . 2 . 14 . . . . . . . . . . . . . . . . . Largest Group 7 | . . . . 1 . . . . 2 2 7 7 . . . . . . . . . . . . . . . . Highest-Rated Group 230 | . . . . 31 . . . . 45 45 230 230 . . . . . . . . . . . . . . . . Highest-Rated Ally 39 | . . . . 31 . . . . 27 27 39 39 . . . . . . . . . . . . . . . . Total Orders 6 | . . . . . . . . . . . . 2 . . . . . . 2 . . . . . . 2 . . STAY 1 | . . . . . . . . . . . . 1 . . . . . . . . . . . . . . . . FOLLOW 1 | . . . . . . . . . . . . 1 . . . . . . . . . . . . . . . . EXPLORE 3 | . . . . . . . . . . . . . . . . . . . 2 . . . . . . 1 . . RETURN 1 | . . . . . . . . . . . . . . . . . . . . . . . . . . 1 . . Ally Attacks 115 | . . . . 10 . . . . 1 1 70 33 . . . . . . . . . . . . . . . . Total Damage 1990 | . . . . 147 . . . . 34 33 1158 618 . . . . . . . . . . . . . . . . Kills 17 | . . . . 3 . . . . 1 . 10 3 . . . . . . . . . . . . . . . . Allies Corrupted . | . . . . . . . . . . . . . . . . . . . . . . . . . . . . . Allies Melted 1 | . . . . . . . . . . . . . 1 . . . . . . . . . . . . . . . Intel | -11 -10 -10 -9 -9 -9 -8 -8 -8 -8 -6 -6 -6 -6 -6 -5 -5 -5 -5 -4 -4 -4 -4 -4 -4 -4 -3 -3 -3 ------- Run | Yrd Mat Min Mat Min Exi Min Mat Sto Rec Fac Ext Cet Arc Hub Fac Upp Upp War Pro Fac Was Fac Upp Upp Zhi Pro Res Qua Active Infowar (turns) 7416 | . . . . . . . . . . . . 516 190 48 717 1026 832 162 529 1430 127 615 761 410 . . . 53 Optics 7363 | . . . . . . . . . . . . 516 190 48 717 1026 832 162 529 1430 127 615 761 410 . . . . Sensors 1719 | . . . . . . . . . . . . . . . . . . . . . . 603 761 355 . . . . IFF 1960 | . . . . . . . . . . . . . . . . 1011 832 117 . . . . . . . . . . Seismic 53 | . . . . . . . . . . . . . . . . . . . . . . . . . . . . 53 Robot Analysis Total 9 | . 2 . 1 . . 1 . . . . . . . . . . . . . 1 . . . . 4 . . . Derelict Logs Recovered 9 | . . 1 . 1 . . . . . . . . . . . 3 . . 2 . . . . 2 . . . . Drone Launches 6 | . . . . . . . . . . . . . . . . . . . 3 . . . . . . 3 . . Drone Recoveries 4 | . . . . . . . . . . . . . . . . . . . 1 . . . . . . 3 . . Exploration | -11 -10 -10 -9 -9 -9 -8 -8 -8 -8 -6 -6 -6 -6 -6 -5 -5 -5 -5 -4 -4 -4 -4 -4 -4 -4 -3 -3 -3 ------------- Run | Yrd Mat Min Mat Min Exi Min Mat Sto Rec Fac Ext Cet Arc Hub Fac Upp Upp War Pro Fac Was Fac Upp Upp Zhi Pro Res Qua Turns Passed 21785 | . 1212 792 1713 1001 698 1192 1083 1396 1812 1418 1495 540 190 48 717 1026 832 162 529 1430 127 615 761 451 75 153 238 79 Spaces Moved 12564 | 1 665 538 828 575 437 685 538 686 1101 779 619 172 124 38 463 547 464 92 231 727 104 422 408 267 136 286 478 153 Core 952 | . . . . . . . . . . . 83 . . . . . . . 1 . . . . 84 136 286 254 108 Treads 7737 | . 448 14 774 575 437 685 538 686 719 735 167 . . . . . . . 219 623 104 422 408 183 . . . . Legs 1814 | 1 217 524 54 . . . . . 382 44 369 171 . . . . . . . 52 . . . . . . . . Wheels . | . . . . . . . . . . . . . . . . . . . . . . . . . . . . . Hover 52 | . . . . . . . . . . . . . . . . . . . . 52 . . . . . . . . Flight 2009 | . . . . . . . . . . . . 1 124 38 463 547 464 92 11 . . . . . . . 224 45 Fastest Speed 39 | 120 120 130 126 160 160 160 160 160 101 101 124 124 124 124 124 178 178 178 154 115 115 115 136 50 50 50 39 40 Average Speed 147 | 120 146 130 157 160 160 160 160 160 149 164 153 124 124 124 134 178 178 178 189 171 115 125 186 145 50 50 46 47 Slowest Speed 500 | 120 160 200 160 160 160 160 160 160 320 176 500 124 124 124 178 178 178 178 450 206 115 136 189 189 50 50 50 50 Overloaded Moves . | . . . . . . . . . . . . . . . . . . . . . . . . . . . . . Propulsion Burnouts . | . . . . . . . . . . . . . . . . . . . . . . . . . . . . . Robots Hopped 15 | . . . . . . . . . . . . . . . 2 2 . . . . . . . . . . 11 . Potential Cave-ins . | . . . . . . . . . . . . . . . . . . . . . . . . . . . . . Cave-ins Triggered . | . . . . . . . . . . . . . . . . . . . . . . . . . . . . . Teleports 1 | . . . . . . . . . . . . . . . . . . . . . . . . . . . . 1 Exploration Rate (%) 58 | 2 96 95 74 98 90 100 30 94 99 15 75 60 100 9 16 72 70 24 70 17 94 16 68 46 60 60 25 27 Regions Visited 28 Branch Regions 19 Pre-discovered Areas 18 | . 2 1 2 1 . . . 1 7 . . . . . . . . . 1 . . . . . 3 . . . Known Exits Taken 7 | . . . . . . . 1 . . 1 . . . . 1 . . . . . . 1 1 . . 1 1 . Unknown Exits Taken 19 | 1 1 1 1 1 1 1 . 1 1 . 1 1 1 1 . 1 1 1 1 . . . . 1 1 . . . Scrap Searched 16 | . . 1 . 1 . 1 . . . . . . . . . 4 3 . 1 . . . 1 2 . 2 . . Spaces Dug 27 | . . 1 . . . . . . . 22 . . . . . 1 . . . . . 3 . . . . . . Terrain Destroyed 457 | . 36 1 16 . . . 1 23 2 98 45 2 . 165 14 8 2 . . 2 . 16 . 26 . . . . Melee 1 | . . 1 . . . . . . . . . . . . . . . . . . . . . . . . . . Projectile 86 | . . . . . . . 1 10 2 . 3 2 . . 14 8 2 . . 2 . 16 . 26 . . . . AOE 370 | . 36 . 16 . . . . 13 . 98 42 . . 165 . . . . . . . . . . . . . . Terrain Rammed . | . . . . . . . . . . . . . . . . . . . . . . . . . . . . . Walls Destroyed . | . . . . . . . . . . . . . . . . . . . . . . . . . . . . . Machines Disabled . | . . . . . . . . . . . . . . . . . . . . . . . . . . . . . Actions | -11 -10 -10 -9 -9 -9 -8 -8 -8 -8 -6 -6 -6 -6 -6 -5 -5 -5 -5 -4 -4 -4 -4 -4 -4 -4 -3 -3 -3 --------- Run | Yrd Mat Min Mat Min Exi Min Mat Sto Rec Fac Ext Cet Arc Hub Fac Upp Upp War Pro Fac Was Fac Upp Upp Zhi Pro Res Qua Total 14695 | . 799 598 1075 613 436 722 653 887 1223 837 1090 448 152 38 501 568 467 91 304 833 110 476 408 289 141 295 482 159 Wait 989 | . 39 12 64 6 . 2 28 37 49 10 315 249 24 . 5 1 1 . 54 36 6 36 . . . 8 7 . Move 12510 | . 664 537 827 574 436 684 537 685 1100 778 618 171 123 37 458 542 463 91 230 727 103 421 407 266 135 285 458 153 Hop 12 | . . . . . . . . . . . . . . . 2 2 . . . . . . . . . . 8 . Pick Up 75 | . 14 3 17 1 . 1 7 11 3 3 3 . . . 3 . 1 . . 2 . . 1 . 1 1 2 1 Fast Attach 60 | . 4 4 10 2 . . 3 8 2 1 1 . 1 . 3 . . . 1 6 . 3 . 1 3 . 4 3 Attach 34 | . 4 . 5 . . 2 6 1 4 2 1 1 . . . 1 . . 2 1 . . . . . 1 2 1 Detach 29 | . 3 3 2 1 . . 1 4 8 1 . . . . 1 . . . . 1 . 1 . 1 1 . . 1 Swap 61 | . 5 3 18 . . 1 6 15 2 2 4 1 . . . 4 . . . . . . . . . . . . Drop 112 | . 10 4 32 3 . 1 4 21 20 1 8 . . . 3 . . . . 1 . . . 2 1 . 1 . Fire 610 | . 55 13 90 20 . 29 58 47 24 38 49 26 4 1 26 18 2 . 17 58 1 15 . 19 . . . . Melee 3 | . . 1 . . . . . . 2 . . . . . . . . . . . . . . . . . . . Ram . | . . . . . . . . . . . . . . . . . . . . . . . . . . . . . Kick 6 | . . 3 . . . . . . 3 . . . . . . . . . . . . . . . . . . . Crush 26 | . 1 . 10 6 . 2 3 2 . 1 . . . . . . . . . 1 . . . . . . . . Escape Stasis 11 | . . . . . . . . . . . 11 . . . . . . . . . . . . . . . . . Rewire 86 | . . . . . . . . . 6 . 80 . . . . . . . . . . . . . . . . . Trap 71 | . . 15 . . . . . 56 . . . . . . . . . . . . . . . . . . . . Miscellaneous . | . . . . . . . . . . . . . . . . . . . . . . . . . . . . . Route ------- -11/Scrapyard -10/Materials (discovered 4 exits: *Mat x3 / *Min) -10/Mines -9/Materials (discovered 2 exits: *Mat / *Min) -9/Mines (discovered 3 exits: *Mat x2 / *Exi) -9/Exiles -8/Mines (discovered 2 exits: *Mat x2) -8/Materials (discovered 2 exits: [*Fac] / *Sto) -8/Storage (discovered 2 exits: [*Fac] / *Rec) -8/Recycling -6/Factory (discovered 4 exits: Low x2 / *Ext x2) -6/Extension (discovered 3 exits: *Fac x2 / [*Cet]) -6/Cetus (discovered 2 exits: *Fac / [*Arc]) -6/Archives (discovered 3 exits: *Fac / [*Hub x2]) -6/Hub_04(d) -5/Factory (discovered 2 exits: *Upp x2) -5/Upper Caves -5/Upper Caves (discovered 2 exits: *Fac / [*War]) -5/Warlord -4/Proximity Caves -4/Factory (discovered 5 exits: *Res x2 / *Upp x2 / Arm) -4/Waste -4/Factory (discovered 3 exits: *Upp x2 / Arm) -4/Upper Caves -4/Upper Caves -4/Zhirov -3/Proximity Caves -3/Research -3/Quarantine History --------- Turn | Location | Event 1 | -11/Scrapyard | Discovered new exit (range 0) 1 | -11/Scrapyard | Entered Materials 218 | -10/Materials | Discovered new exit (range 15) 318 | -10/Materials | Build established: Mutant 477 | -10/Materials | Discovered new exit (range 5) 725 | -10/Materials | Repaired Lgt. Treads 983 | -10/Materials | Discovered new exit (range 7) 1019 | -10/Materials | Central database locked down 1067 | -10/Materials | Discovered new exit (range 15) 1213 | -10/Materials | Entered Mines 1218 | -10/Mines | Met a Derelict who couldn't figure out how to use a Trap Extractor 1365 | -10/Mines | Found a hidden stash of uninstalled traps 1490 | -10/Mines | Received a Rocket Launcher from a helpful Derelict 1600 | -10/Mines | Discovered new exit (range 15) 1773 | -10/Mines | Assembled infested the area 2005 | -10/Mines | Entered Materials 2005 | -9/Materials | Evolved 2 slots: Propulsion x1, Weapon x1 2512 | -9/Materials | Build established: Tank 2785 | -9/Materials | Repaired Med. Armor Plating 3056 | -9/Materials | Discovered new exit (range 11) 3079 | -9/Materials | Build established: Scavenger-Tank 3462 | -9/Materials | Discovered new exit (range 15) 3605 | -9/Materials | First assault squad dispatched 3718 | -9/Materials | Entered Mines 3721 | -9/Mines | Received a Mining Laser from a helpful Derelict 3852 | -9/Mines | Found the Drone Emporium 3859 | -9/Mines | Found Prototype Device 3859 | -9/Mines | Identified Thief Drone Bay 3973 | -9/Mines | Learned location of Recycling (-8) 4235 | -9/Mines | Discovered new exit (range 9) 4291 | -9/Mines | Discovered new exit (range 10) 4310 | -9/Mines | Deemed a non-threat by the Exiles lab entrance 4310 | -9/Mines | Discovered new exit (range 5) 4454 | -9/Mines | A weapon hastily lodged in a ceiling crevice suddenly fell to the ground 4719 | -9/Mines | Entered Exiles 4719 | -9/Exiles | Found Exiles lab abandoned 5400 | -9/Exiles | Discovered new exit (range 14) 5417 | -9/Exiles | Entered Mines 5655 | -8/Mines | Discovered new exit (range 7) 6120 | -8/Mines | Discovered new exit (range 12) 6609 | -8/Mines | Entered Materials 6609 | -8/Materials | Evolved 2 slots: Utility x2 6921 | -8/Materials | Repaired Autogun 7014 | -8/Materials | Discovered new exit (range 3) 7140 | -8/Materials | Discovered new exit (range 15) 7453 | -8/Materials | Build established: Scavenger-Gunner 7690 | -8/Materials | Identified exit to Storage 7692 | -8/Materials | Entered Storage 8198 | -8/Storage | Garrison activated, responded to threat 8604 | -8/Storage | Discovered new exit (range 6) 9082 | -8/Storage | Used back door to open Recycling access 9082 | -8/Storage | Discovered new exit (range 5) 9088 | -8/Storage | Entered Recycling 9126 | -8/Recycling | Build established: Scavenger-Tank 9661 | -8/Recycling | Discovered new exit (range 15) 10102 | -8/Recycling | Scanned before Scraplab entrance 10125 | -8/Recycling | Entered Scraplab 10138 | -8/Recycling | Discovered new exit (range 2) 10166 | -8/Recycling | Angered Scraplab inhabitants 10242 | -8/Recycling | Found Prototype Device 10242 | -8/Recycling | Identified Scrap Engine 10703 | -8/Recycling | Build established: Construct 10900 | -8/Recycling | Entered Factory 10900 | -6/Factory | Accompanied by 2 allies 10900 | -6/Factory | Evolved 4 slots: Power x2, Propulsion x1, Weapon x1 10985 | -6/Factory | Identified exit to Lower Caves 10985 | -6/Factory | Identified exit to Extension 12300 | -6/Factory | First assault squad dispatched 12318 | -6/Factory | Entered Extension 12319 | -6/Extension | Disrupted transfer network 12633 | -6/Extension | Energy Cycler disabled 12633 | -6/Extension | Rescued a captive Derelict 12633 | -6/Extension | Rescued a captive Derelict 12633 | -6/Extension | Rescued a captive Derelict 12633 | -6/Extension | Rescued a captive Derelict 12633 | -6/Extension | Rescued a captive Derelict 12633 | -6/Extension | Rescued a captive Derelict 12633 | -6/Extension | Rescued a captive Derelict 12634 | -6/Extension | Rescued a captive Derelict 12635 | -6/Extension | Rescued a captive Derelict 12636 | -6/Extension | Rescued a captive Derelict 12636 | -6/Extension | Rescued a captive Derelict 12637 | -6/Extension | Rescued a captive Derelict 12642 | -6/Extension | Rescued a captive Derelict 12642 | -6/Extension | Rescued a captive Derelict 12643 | -6/Extension | Rescued a captive Derelict 12649 | -6/Extension | Rescued a captive Derelict 12652 | -6/Extension | Rescued a captive Derelict 13002 | -6/Extension | Lost 3 allies 13274 | -6/Extension | Spotted B-75 Beast 13369 | -6/Extension | Allies destroyed B-75 Beast 13374 | -6/Extension | Discovered new exit (range 16) 13383 | -6/Extension | Extracted ID and sensor layout for unrecognized location from A7's data core 13768 | -6/Extension | Discovered new exit (range 10) 13769 | -6/Extension | Discovered new exit (range 6) 13813 | -6/Extension | Entered Cetus 13813 | -6/Cetus | Accompanied by 7 allies 13815 | -6/Cetus | Build established: Commander-Construct 13841 | -6/Cetus | Spotted Cetus Guard 13842 | -6/Cetus | Spotted Cetus Guard 13847 | -6/Cetus | Spotted Cetus Guard 13851 | -6/Cetus | Spotted Cetus Guard 13856 | -6/Cetus | Destroyed Cetus Guard 13858 | -6/Cetus | Allies destroyed Cetus Guard 13860 | -6/Cetus | Allies destroyed Cetus Guard 13864 | -6/Cetus | Allies destroyed Cetus Guard 13930 | -6/Cetus | Discovered new exit (range 21) 13967 | -6/Cetus | Spotted Cetus Guard 13967 | -6/Cetus | Spotted Cetus Guard 13973 | -6/Cetus | Spotted Cetus Guard 13976 | -6/Cetus | Spotted Cetus Guard 13979 | -6/Cetus | Destroyed Cetus Guard 13985 | -6/Cetus | Destroyed Cetus Guard 14009 | -6/Cetus | Destroyed Cetus Guard 14026 | -6/Cetus | Lost 5 allies 14032 | -6/Cetus | Destroyed Cetus Guard 14043 | -6/Cetus | Discovered new exit (range 22) 14058 | -6/Cetus | Met Revision 17 14281 | -6/Cetus | Build established: Construct 14353 | -6/Cetus | Entered Archives 14371 | -6/Archives | Met Zhirov 14371 | -6/Archives | Discovered new exit (range 22) 14376 | -6/Archives | Discovered new exit (range 22) 14377 | -6/Archives | Reinforcements dispatched to Archives 14422 | -6/Archives | Reinforcements dispatched to Archives 14442 | -6/Archives | Zhirov detonated Archives 14443 | -6/Archives | Core integrity fell below 50% 14459 | -6/Archives | Discovered new exit (range 22) 14543 | -6/Archives | Entered Hub_04(d) 14582 | -6/Hub_04(d) | Discovered new exit (range 5) 14584 | -6/Hub_04(d) | Network Hub disabled 14591 | -6/Hub_04(d) | Entered Factory 14591 | -5/Factory | Evolved 2 slots: Utility x2 14832 | -5/Factory | Spotted B-75 Beast 15137 | -5/Factory | Identified exit to Upper Caves 15308 | -5/Factory | Entered Upper Caves 15316 | -5/Upper Caves | Encountered a Warlord checkpoint 15367 | -5/Upper Caves | Learned Factory security intel 15563 | -5/Upper Caves | Learned 4 Factory zone layouts 15579 | -5/Upper Caves | Learned Factory terminal intel 15691 | -5/Upper Caves | Attracted the attention of an 0b10 checkpoint 15891 | -5/Upper Caves | Spotted B-75 Beast 16231 | -5/Upper Caves | Discovered new exit (range 11) 16334 | -5/Upper Caves | Entered another Upper Caves area 16342 | -5/Upper Caves | Discovered new exit (range 16) 16480 | -5/Upper Caves | Encountered a Warlord checkpoint 17088 | -5/Upper Caves | Discovered new exit (range 9) 17166 | -5/Upper Caves | Entered Warlord 17225 | -5/Warlord | System corruption cleaned by Quarantine Array 17232 | -5/Warlord | Attacked by Warlord forces 17252 | -5/Warlord | Spotted KK-K3H(B) 17252 | -5/Warlord | Spotted 4L-2YZ(B) 17307 | -5/Warlord | Discovered new exit (range 14) 17314 | -5/Warlord | Lost 7 parts (2p2u3w) 17328 | -5/Warlord | Entered Proximity Caves 17367 | -4/Proximity Caves | Learned 4 Research zone layouts 17483 | -4/Proximity Caves | Lost 3 parts (1u2w) 17779 | -4/Proximity Caves | Discovered new exit (range 16) 17857 | -4/Proximity Caves | Entered Factory 17857 | -4/Factory | Evolved 2 slots: Propulsion x1, Utility x1 17858 | -4/Factory | Identified exit to Research 17860 | -4/Factory | Loaded intel: 26 terminal locations 18316 | -4/Factory | Identified exit to Upper Caves 18316 | -4/Factory | Identified exit to Armory 18874 | -4/Factory | Lost 3 parts (2u1w) 19089 | -4/Factory | Discovered exit to Research (range 20) 19287 | -4/Factory | Sucked down chute 19287 | -4/Factory | Entered Waste 19287 | -4/Waste | Spotted C-40 Crusher 19289 | -4/Waste | Spotted C-40 Crusher 19298 | -4/Waste | Spotted C-40 Crusher 19300 | -4/Waste | Spotted C-40 Crusher 19302 | -4/Waste | EMP discharged 19302 | -4/Waste | System corruption reached 10% 19339 | -4/Waste | Crushed by Compactor (0 parts destroyed, 1 dropped) 19350 | -4/Waste | Spotted C-40 Crusher 19377 | -4/Waste | Spotted C-40 Crusher 19402 | -4/Waste | EMP discharged 19403 | -4/Waste | Discovered new exit (range 10) 19414 | -4/Waste | Entered Factory 20029 | -4/Factory | Entered Upper Caves 20727 | -4/Upper Caves | Discovered new exit (range 18) 20788 | -4/Upper Caves | Identified exit to Upper Caves 20790 | -4/Upper Caves | Entered another Upper Caves area 20796 | -4/Upper Caves | Learned Research trap positions 20849 | -4/Upper Caves | Learned Research terminal intel 21200 | -4/Upper Caves | Released all parts (6) 21222 | -4/Upper Caves | Attracted the attention of an 0b10 checkpoint 21230 | -4/Upper Caves | Lost 7 parts (1p1n1u4w) 21238 | -4/Upper Caves | Discovered new exit (range 8) 21241 | -4/Upper Caves | Entered Zhirov 21241 | -4/Zhirov | Discovered new exit (range 3) 21273 | -4/Zhirov | Found Alien Artifact 21280 | -4/Zhirov | Found Alien Artifact 21280 | -4/Zhirov | Identified Integrated Reactor 21280 | -4/Zhirov | Installed Integrated Reactor, increased core energy generation (+10) 21316 | -4/Zhirov | Entered Proximity Caves 21398 | -3/Proximity Caves | Spotted B-86 Titan 21399 | -3/Proximity Caves | Core integrity fell below 50% 21453 | -3/Proximity Caves | Core integrity fell below 20% 21464 | -3/Proximity Caves | Discovered exit to Research (range 9) 21469 | -3/Proximity Caves | Entered Research 21469 | -3/Research | Evolved 2 slots: Propulsion x1, Utility x1 21470 | -3/Research | Identified exit to Quarantine 21471 | -3/Research | Loaded intel: 70 trap records 21472 | -3/Research | Loaded intel: 22 terminal locations 21498 | -3/Research | Build established: Mutant 21660 | -3/Research | Core integrity fell below 50% 21669 | -3/Research | Revision forces began assault on 0b10 21700 | -3/Research | Core integrity fell below 20% 21707 | -3/Research | Entered Quarantine 21730 | -3/Quarantine | Identified Transdimensional Reconstructor 21730 | -3/Quarantine | Warped through subspace 21740 | -3/Quarantine | Found Fusion Bomb Launcher 21749 | -3/Quarantine | Found Alien Artifact 21749 | -3/Quarantine | Identified Core Reset Matrix 21749 | -3/Quarantine | Used Core Reset Matrix 21753 | -3/Quarantine | Detected hypermatrix surge 21753 | -3/Quarantine | Sensed 8 artifacts in vicinity 21786 | -3/Quarantine | Destroyed by H-77 Assassin with High-powered Shotgun Last Messages --------------- 21743_ O-24 Administrator: "IFF HANDSHAKE FAILED. SECURING TERMINAL." 21749_ Acquired Alien Artifact. 21749_ Identified Core Reset Matrix. 21749_ Wiping memory... 21750_ CORE RESET 21753_ Detected hypermatrix surge. 21753_ Sensed 8 artifacts in vicinity. 21759_ Connecting with Terminal... 21762_ O-24 Administrator uses terminal to summon reinforcements. 21762_ ALERT: Hostiles spotted, dispatching reinforcements to Terminal Q010. 21762_ O-24 Administrator locks terminal. 21769_ Penetrated by Slug. 21769_ O-32 Director: "IFF HANDSHAKE FAILED. SECURING TERMINAL." 21769_ Seismic Detector destroyed. 21769_ Slug penetrates Wall. 21777_ ALERT: Hostiles spotted, dispatching reinforcements to Terminal Q011. 21778_ Penetrated by Slug. 21786_ Slug penetrates Wall. Map ----- +----------------------------------------------------+ | ?????????????????????????????????????????????????? | | ?????????????????????????????????????????????????? | | ?????????????????????????????????????????????????? | | ?????????????????????????????????????????????????? | | ?????????????????????????????????????????????????? | | ?????????????????????????????????????????????????? | | ?????????????????????????????????????????????????? | | ?????????????????????????????????????????????????? | | ?????????????????????????????????????????????????? | | ?????????????????????????????????????????????????? | | ?????????????????????????????????????????????????? | | ?????????????????????????????????????????????????? | | ?????????????????? ? ? ?????????????????????????? | | ??????????????????# ?????????????????????????? | | ??????????????????# " ????????????????????????? | | ??????????????????? ????????????????????????? | | ??????????????????? ????????????????????????? | | ???????????????????? ????????????????????????? | | ????????????????????# #????????????????????????? | | ????????????????????# #????????????????????????? | | ????????????????????# k #????????????????????????? | | ????????????????????#h #??######????????????????? | | ???????????????????## ##? =#????????????????? | | ???????????????????# # ] #????????????????? | | ????????????????#### "T # #????????????????? | | ????????????????+ "" @ #????????????????? | | ?????????????????### o # #????????????????? | | ???????????????????# # #????????????????? | | ???????????????????### ##########????????????????? | | ???????????/?????????# # #?????????????????? | | ?????????????????????# # ""T"" #?????????????????? | | ?????????????????????# # """""???????????????????? | | ?????????????????????# # ?????????????????????? | | ?????????????????????# ## #??????????????????????? | | ?????????????????????# #######????????????????? | | ?????????????????????# # #????????????????? | | ?????????????######### # #????????????????? | | ???????????+ # #????????????????? | | ???????????????####### # """ #????????????????? | | ?????????????????????# # """ #????????????????? | | ?????????????????###?#+## + """ #????????????????? | | ?????????????????# * ??# # #????????????????? | | ?????????????????# # #######????????????????? | | ?????????????????# """ + #??????????????????????? | | ?????????????????#! T" # #??????????????????????? | | ?????????????????# ""??# #??????????????????????? | | ?????????????????# ????# #??????????????????????? | | ????????????????######### #??????????????????????? | | ?????????????#### ####???????????????????? | | ?????????????+ #???????????????????? | +----------------------------------------------------+ Best States ------------- Heat Dissipation 97 Energy Generation 66 Energy Capacity 628 Matter Stores 300 Matter Capacity 300 Sight Range 22 Robot Scan Range 16 Terrain Scan Density 10 Base Temperature (-) 200 Armor Coverage 225 Power Shielding 90 Weapon Shielding 66 Evasion (%) 62 Targeting Accuracy 8 Target Analysis 6 Armor Integrity Analysis 40 Recoil Reduction 4 Defensive Hacking 14 Item Schematics ----------------- None Robot Schematics ------------------ None Fabricated ------------ Nothing Repaired ---------- Lgt. Treads | 62% | -10/Materials Med. Armor Plating | 10% | -9/Materials Autogun | 8% | -8/Materials Alien Tech Used ----------------- Integrated Reactor Transdimensional Reconstructor Core Reset Matrix Achievements -------------- None Challenges ------------ None Game ------ Seed MakeshiftAssaultMesh Manual? 0 Play Time 02:24:32 Cumulative 365.9 hours Start 2025.06.30 @ 18:21:49 End 2025.07.01 @ 16:25:50 Sessions 5 Manual Loads 0 Difficulty Rogue Special Mode None Game No. 248 Rogue 248 Adventurer 0 Explorer 0 Win Type - Total 27 Types 21/0/4/2/0/0/0/0/0/0 Lore% 90 Gallery% 79 Achievement% 67 Wizard Run 0 Options --------- Layout 0 ASCII 1 Keyboard 1 Movement Arrows Keybinds 0 Fullscreen 2 Font 18/Terminus Map View 76x50 Zoom Use 0% Tactical HUD 1 Map Filters NONE Filters NONE Steam 1 RUN: 75e5cd04-b37a-4361-8220-d31094303a2d